bitfinex/quotes_ETHUSD_20240925
["timestamp","ask_amount","ask_price","bid_price","bid_amount"]
[1727296933567,0.8219,2583.5,2583.2,3.87113]
[1727296936079,0.8219,2583.5,2583.1,3.8713]
[1727296936491,0.8219,2583.5,2583.1,7.74252]
[1727296936641,0.8219,2583.5,2583.1,3.87122]
[1727296937139,0.8219,2583.5,2583.2,3.87116]
[1727296944243,2.85401613,2583.5,2583.2,3.87116]
[1727296944952,0.8219,2583.5,2583.2,3.87116]
[1727296945467,0.8219,2583.5,2583.3,3.87095]
[1727296945782,3.87043,2583.7,2583.3,3.87095]
[1727296945783,2.81955554,2583.7,2583.4,3.87078]
[1727296945944,0.7844,2583.7,2583.4,3.87078]
[1727296946141,4.13262133,2584.0,2583.5,4.257708]
[1727296946142,2.81955554,2583.9,2583.5,4.257708]
[1727296946378,2.81955554,2583.9,2583.5,7.74128]
[1727296946565,6.68967554,2583.9,2583.5,3.87063]
[1727296947380,4.65452,2583.9,2583.5,7.74127]
[1727296947791,0.7844,2583.9,2583.6,0.07702572]
[1727296948079,2.03515554,2584.0,2583.7,7.74066]
[1727296948283,2.81765554,2584.1,2583.7,3.87033]
[1727296948851,2.81765554,2584.1,2583.8,3.87024]
[1727296949451,0.7825,2584.1,2583.8,3.87024]
[1727296952048,0.7825,2584.1,2583.8,3.9472333]
[1727296952249,0.7825,2584.1,2583.8,4.7212903]
[1727296952450,0.0369732,2584.2,2583.9,7.74008]
[1727296952675,0.0369732,2584.2,2583.9,3.87003]
[1727296954055,0.0369732,2584.2,2583.9,7.74006]
[1727296954300,0.0369732,2584.2,2583.9,4.8038817]
[1727296962545,0.0369732,2584.2,2583.9,4.85658467]
[1727296962732,0.0369732,2584.2,2584.1,3.86981]
[1727296968659,0.0369732,2584.2,2584.0,4.41996]
[1727296968809,0.0369732,2584.2,2583.9,3.8701]
[1727296969013,0.8526732,2584.2,2583.9,3.8701]
[1727296971452,0.8526732,2584.2,2584.0,3.86994]
[1727296979725,0.8526732,2584.2,2584.0,7.73983]
[1727296980265,0.8526732,2584.2,2584.0,3.86989]
[1727296981640,0.8526732,2584.2,2584.0,7.73978]
[1727296985044,0.8526732,2584.2,2584.0,3.86989]
[1727296988150,0.8526732,2584.2,2584.0,7.73979]
[1727296988352,0.0369732,2584.2,2584.1,3.86981]
[1727296988552,0.0369732,2584.2,2584.1,4.70101]
[1727296993488,0.0369732,2584.2,2584.1,3.86981]
[1727296994570,0.0369732,2584.2,2584.0,3.86989]
[1727296995258,0.0369732,2584.2,2584.0,7.73977]
[1727296995979,0.0369732,2584.2,2584.0,3.86988]
[1727296996172,0.0369732,2584.2,2584.1,3.86981]
[1727296997454,0.0369732,2584.2,2584.0,3.86988]
[1727296998102,0.0369732,2584.2,2584.0,7.73976]
[1727296998488,0.0369732,2584.2,2584.0,3.86988]
[1727296998800,0.0369732,2584.2,2584.0,7.73973]
[1727296999173,0.0369732,2584.2,2584.0,3.86985]
[1727297000464,0.0369732,2584.2,2584.1,3.86981]
[1727297004801,0.0369732,2584.2,2584.0,3.86996]
[1727297005497,0.0369732,2584.2,2584.0,7.73986]
[1727297006461,0.0369732,2584.2,2584.0,3.8699]
[1727297006699,0.0369732,2584.2,2584.0,3.86988]
[1727297007199,0.0369732,2584.2,2584.0,7.73974]
[1727297007582,0.0369732,2584.2,2584.0,7.73975]
[1727297009504,0.0369732,2584.2,2584.0,3.86986]
[1727297009675,0.0369732,2584.2,2584.0,7.73975]
[1727297010172,0.0369732,2584.2,2584.0,3.86986]
[1727297018689,0.0369732,2584.2,2583.9,3.87009]
[1727297019521,0.0369732,2584.2,2584.0,3.86995]
[1727297019683,0.0369732,2584.2,2583.9,4.42008]
[1727297021009,0.0369732,2584.2,2584.0,3.86993]
[1727297024106,0.0369732,2584.2,2583.9,0.55]
[1727297024307,0.0369732,2584.2,2583.9,3.87005]
[1727297024625,2.07104291,2584.2,2583.9,3.87005]
[1727297025493,0.0369732,2584.2,2583.9,3.87005]
[1727297025883,2.07104291,2584.2,2583.9,3.87004]
[1727297026206,0.0369732,2584.2,2583.9,3.87004]
[1727297028732,0.0369732,2584.2,2583.9,7.74005]
[1727297029218,0.0369732,2584.2,2583.9,3.87001]
[1727297030023,0.7783,2584.1,2583.8,0.55]
[1727297030188,0.7783,2584.1,2583.8,4.42024]
[1727297031129,0.7783,2584.1,2583.7,3.87033]
[1727297031323,0.7783,2584.1,2583.7,4.7972817]
[1727297033083,0.7783,2584.1,2583.7,0.9269517]
[1727297033288,0.7783,2584.1,2583.8,3.87025]
[1727297033489,0.7783,2584.1,2583.8,3.94724443]
[1727297034898,0.7783,2584.1,2583.8,3.87025]
[1727297035727,0.7783,2584.1,2583.8,7.81744419]
[1727297035939,0.7783,2584.1,2583.8,3.8702]
[1727297036101,0.0369732,2584.2,2584.1,3.86981]
[1727297036823,0.0369732,2584.2,2584.0,3.86996]
[1727297037185,0.0369732,2584.2,2584.0,7.73981]
[1727297037391,0.0369732,2584.2,2584.0,3.86985]
[1727297037600,0.0369732,2584.2,2584.0,4.47758112]
[1727297038510,0.0369732,2584.2,2584.1,3.86981]
[1727297038930,0.0369732,2584.2,2584.1,3.94677225]
[1727297039698,0.0369732,2584.2,2584.1,4.71497225]
[1727297040463,0.0369732,2584.2,2584.1,5.23535561]
[1727297040614,0.0369732,2584.2,2584.1,6.40529265]
[1727297041905,0.0369732,2584.2,2584.1,6.32834714]
[1727297042614,0.0369732,2584.2,2584.1,6.40528772]
[1727297042816,0.0369732,2584.2,2584.1,6.32834714]
[1727297043012,0.0369732,2584.2,2584.1,6.40528777]
[1727297043456,0.0369732,2584.2,2584.1,1.69033714]
[1727297043641,0.0369732,2584.2,2584.1,0.55]
[1727297045955,0.0369732,2584.2,2584.1,5.19931]
[1727297046174,0.0369732,2584.2,2584.1,0.55]
[1727297047150,0.0369732,2584.2,2583.8,3.87015]
[1727297047457,0.8046732,2584.2,2583.9,4.42009]
[1727297048940,0.8046732,2584.2,2583.9,0.55]
[1727297049140,3.33486437,2584.2,2583.6,3.87046]
[1727297049343,0.7677,2584.0,2583.6,3.87046]
[1727297049569,0.7677,2584.0,2583.7,3.8704]
[1727297052042,0.7677,2584.0,2583.6,3.87046]
[1727297052228,0.7677,2584.0,2583.6,7.74094]
[1727297052434,0.7677,2584.0,2583.7,3.87041]
[1727297052941,0.7677,2584.0,2583.6,7.74091]
[1727297053469,0.7677,2584.0,2583.6,7.74092]
[1727297054035,0.7677,2584.0,2583.7,3.8704]
[1727297064475,0.7677,2584.0,2583.7,3.94740308]
[1727297064879,0.7677,2584.0,2583.6,3.87045]
[1727297065216,0.7677,2584.0,2583.6,7.74094]
[1727297065512,0.7677,2584.0,2583.6,3.87045]
[1727297065725,0.7677,2584.0,2583.4,3.87074]
[1727297066014,0.7798,2583.7,2583.3,3.871]
[1727297066587,4.65024,2583.7,2583.3,3.871]
[1727297067683,0.7798,2583.7,2583.3,3.871]
[1727297068614,0.7798,2583.7,2583.4,3.87086]
[1727297068788,0.7798,2583.7,2583.3,3.87101]
[1727297069323,4.65026,2583.7,2583.2,3.87103]
[1727297069613,4.65026,2583.7,2583.3,3.87094]
[1727297069816,0.7798,2583.7,2583.4,3.87084]
[1727297071423,0.7798,2583.7,2583.3,3.871]
[1727297072050,0.7798,2583.7,2583.4,3.87086]
[1727297083360,0.7798,2583.7,2583.3,3.87094]
[1727297083748,0.7798,2583.7,2583.2,3.87104]
[1727297084053,0.7798,2583.7,2583.4,3.87085]
[1727297091246,0.7798,2583.7,2583.2,3.87104]
[1727297091545,4.65028,2583.7,2583.3,3.87101]
[1727297092443,0.7798,2583.7,2583.3,3.87101]
[1727297094251,0.7798,2583.7,2583.4,3.87085]
[1727297102716,4.65025,2583.7,2583.3,3.87101]
[1727297102952,0.7798,2583.7,2583.3,3.87101]
[1727297103711,4.65028,2583.7,2583.3,3.87101]
[1727297103915,4.65028,2583.7,2583.0,0.96992659]
[1727297103916,3.87132,2583.1,2583.0,0.96992659]
[1727297104153,3.87132,2583.1,2582.3,3.87238]
[1727297104154,4.66003,2582.9,2582.3,3.87238]
[1727297104468,4.66003,2582.9,2582.3,0.32326632]
[1727297104469,1.69043468,2582.5,2582.3,0.32326632]
[1727297104646,0.7883,2582.4,2582.3,0.32326632]
[1727297104824,0.63504647,2582.9,2582.4,3.87229]
[1727297104825,0.7895,2582.7,2582.4,3.87229]
[1727297106263,0.7895,2582.7,2582.4,3.87226]
[1727297118611,4.66144,2582.7,2582.3,3.8725]
[1727297119611,5.68379447,2582.7,2582.3,3.8725]
[1727297120109,5.68379447,2582.7,2582.1,7.74538]
[1727297120289,3.8721,2582.6,2582.1,3.87266]
[1727297120493,0.8248,2582.5,2582.1,3.87266]
[1727297120972,0.8248,2582.5,2582.2,3.87263]
[1727297121814,6.38744468,2582.5,2582.0,3.87286]
[1727297122016,1.46154447,2582.4,2582.0,3.87286]
[1727297122322,1.46154447,2582.4,2582.0,7.74573]
[1727297122475,0.8228,2582.4,2582.0,3.87286]
[1727297122875,0.8228,2582.4,2582.1,3.87274]
[1727297123323,0.8228,2582.4,2582.1,3.8728]
[1727297124120,0.8228,2582.4,2582.0,3.87286]
[1727297124121,0.8228,2582.4,2582.2,3.87266]
[1727297124424,0.8228,2582.4,2582.2,7.74524]
[1727297124624,0.8228,2582.4,2582.2,3.87258]
[1727297124821,0.8228,2582.4,2582.2,7.74517]
[1727297125051,0.8228,2582.4,2582.2,3.87258]
[1727297126662,0.7653,2582.6,2581.9,3.87308]
[1727297126865,0.7653,2582.8,2582.5,3.87213]
[1727297134957,0.7653,2582.8,2582.4,4.70296]
[1727297143161,13.25773851,2583.3,2582.7,3.87191]
[1727297143162,0.762,2583.0,2582.7,3.87191]
[1727297143361,3.87118,2583.2,2582.8,3.87173]
[1727297143564,11.03677385,2583.3,2582.8,3.87173]
[1727297143793,7.54785385,2583.3,2582.8,3.87173]
[1727297143998,4.69508,2583.3,2582.7,3.87191]
[1727297144159,3.87123,2583.2,2582.7,7.74374]
[1727297144363,3.87123,2583.2,2582.8,3.87176]
[1727297146764,4.69508,2583.3,2582.8,3.87176]
[1727297146966,0.824,2583.3,2582.9,3.8715]
[1727297147265,3.87083,2583.5,2583.0,3.87134]
[1727297147464,5.87511697,2583.5,2583.0,3.87134]
[1727297147702,7.90183548,2583.5,2583.1,3.87129]
[1727297147907,7.9061058,2583.5,2583.1,3.87129]
[1727297148066,11.7769558,2583.5,2583.0,3.87134]
[1727297148271,0.7807,2583.4,2583.0,3.87134]
[1727297151193,0.7807,2583.4,2583.0,3.87004723]
[1727297152584,4.65164,2583.4,2583.0,3.87004723]
[1727297153596,4.74841935,2583.4,2582.9,3.87159]
[1727297153775,3.87109,2583.3,2582.9,3.8716]
[1727297153972,3.87132,2583.1,2582.7,4.42189]
[1727297154220,3.87132,2583.1,2582.6,3.87198]
[1727297154221,0.773,2582.9,2582.6,3.87198]
[1727297154674,0.773,2582.9,2582.4,3.87226]
[1727297154675,1.69043468,2582.8,2582.4,3.87226]
[1727297155018,0.8288,2582.7,2582.4,3.87226]
[1727297155924,0.8288,2582.7,2582.5,3.87219]
[1727297157511,3.87162,2582.9,2582.4,3.87226]
[1727297157512,4.65739,2583.0,2582.6,3.87206]
[1727297157714,5.32622788,2583.0,2582.6,3.87206]
[1727297158727,5.32622788,2583.0,2582.5,3.87219]
[1727297160134,5.32622788,2583.0,2582.6,3.87205]
[1727297166431,3.87161,2582.9,2582.5,3.8722]
[1727297166641,4.79139379,2582.9,2582.5,3.8722]
[1727297167141,0.7547,2582.8,2582.5,3.8722]
[1727297168500,0.7547,2582.8,2582.4,3.87224]
[1727297168734,2.85687684,2583.2,2582.8,3.87175]
[1727297169102,0.8249,2583.2,2582.9,3.87153]
[1727297169415,0.8249,2583.2,2582.9,7.74306]
[1727297169611,0.8249,2583.2,2583.0,3.87146]
[1727297171847,0.8051,2583.4,2583.1,3.87131]
[1727297172019,2.83687183,2583.6,2583.1,0.7791]
[1727297172226,0.8051,2583.6,2583.3,3.87101]
[1727297173249,0.8051,2583.6,2583.1,4.6504]
[1727297173449,0.8051,2583.6,2583.1,8.52157]
[1727297174359,0.8051,2583.6,2583.2,3.87116]
[1727297174560,0.8051,2583.6,2583.4,3.87084]
[1727297174737,7.36,2583.7,2583.4,3.87084]
[1727297174921,7.36,2583.7,2583.4,3.87078]
[1727297176528,0.7749,2583.8,2583.5,3.87069]
[1727297176745,0.7749,2583.8,2583.6,3.87051]
[1727297178869,0.8204,2584.0,2583.6,7.74102]
[1727297179070,0.8204,2584.0,2583.7,3.87038]
[1727297179365,2.84267751,2584.2,2583.8,3.87026]
[1727297179565,0.8117732,2584.2,2583.8,5.56069468]
[1727297179749,0.8117732,2584.2,2583.9,3.87011]
[1727297180769,0.8117732,2584.2,2584.0,3.86996]
[1727297182294,0.8117732,2584.2,2583.9,3.87011]
[1727297182514,0.0369732,2584.2,2584.0,3.86988]
[1727297184082,0.0369732,2584.2,2584.0,7.73977]
[1727297184576,0.0369732,2584.2,2584.0,3.86988]
[1727297186806,0.0369732,2584.2,2584.0,7.73978]
[1727297186967,0.0369732,2584.2,2584.1,0.93515869]
[1727297188277,0.0369732,2584.2,2584.1,4.80496869]
[1727297191814,0.0369732,2584.2,2584.1,4.88194257]
[1727297192918,0.0369732,2584.2,2584.1,5.35496869]
[1727297193090,0.0369732,2584.2,2584.1,6.14836869]
[1727297193291,0.0369732,2584.2,2584.1,6.225314]
[1727297193884,0.0369732,2584.2,2584.1,6.14836869]
[1727297196906,0.0369732,2584.2,2584.1,9.22529844]
[1727297197095,0.0369732,2584.2,2584.1,9.14836869]
[1727297217863,0.0369732,2584.2,2584.1,10.83880337]
[1727297226082,0.0369732,2584.2,2584.1,11.75348565]
[1727297226279,0.0369732,2584.2,2584.1,14.09492239]
[1727297226616,0.0369732,2585.0,2584.9,3.86862]
[1727297227026,0.0369732,2585.0,2584.9,4.41862]
[1727297227177,0.0369732,2585.0,2584.9,5.18942]
[1727297228123,0.0369732,2585.0,2584.9,4.41862]
[1727297228923,0.8644732,2585.0,2584.9,3.86862]
[1727297233926,0.8644732,2585.0,2584.8,3.86874]
[1727297235012,0.8644732,2585.0,2584.9,3.86862]
[1727297235216,0.8644732,2585.0,2584.8,3.86867]
[1727297237461,0.8644732,2585.0,2584.8,7.73736]
[1727297238138,0.8644732,2585.0,2584.8,3.86867]
[1727297239039,0.8644732,2585.0,2584.9,3.86862]
[1727297242355,0.8644732,2585.0,2584.8,3.86875]
[1727297243099,0.8644732,2585.0,2584.7,3.86891]
[1727297243302,0.8644732,2585.0,2584.8,3.86875]
[1727297243601,0.8644732,2585.0,2584.7,3.86891]
[1727297243602,0.7638,2584.8,2584.7,3.86892]
[1727297244317,0.8471732,2585.0,2584.8,3.86868]
[1727297247755,0.8471732,2585.0,2584.6,3.86892]
[1727297247958,0.8471732,2585.0,2584.7,3.86889]
[1727297251603,4.7156432,2585.0,2584.6,3.86892]
[1727297251836,4.7156432,2585.0,2584.4,4.70016]
[1727297251837,0.7845,2584.9,2584.5,3.8692]
[1727297253392,0.8023,2584.8,2584.5,3.8692]
[1727297253613,0.8023,2584.8,2584.4,3.86934]
[1727297254497,0.8023,2584.8,2584.5,7.73835]
[1727297254910,0.8023,2584.8,2584.5,3.86915]
[1727297269740,0.8522732,2585.0,2584.6,3.86896]
[1727297269944,0.8522732,2585.0,2584.8,3.86876]
[1727297270641,0.0369732,2585.0,2584.9,3.86862]
[1727297272040,0.0369732,2585.0,2584.8,3.86876]
[1727297272240,0.0369732,2585.0,2584.8,4.89399647]
[1727297272547,0.0369732,2585.0,2584.8,7.73738]
[1727297273756,0.0369732,2585.0,2584.9,3.86862]
[1727297274123,0.0369732,2585.0,2584.9,4.75851271]
[1727297274399,0.0369732,2585.0,2584.9,5.3085052]
[1727297275944,0.0369732,2585.0,2584.9,5.30849306]
[1727297276159,0.0369732,2585.0,2584.9,6.39525383]
[1727297277524,0.0369732,2585.0,2584.9,6.31838077]
[1727297277725,0.0369732,2585.0,2584.9,6.39525679]
[1727297280469,3.9055132,2585.0,2584.6,0.8183]
[1727297280667,3.9055132,2585.0,2584.3,3.8695]
[1727297280668,4.62148,2584.8,2584.3,3.8695]
[1727297280870,4.62148,2584.8,2584.4,4.89405447]
[1727297280871,0.7526,2584.8,2584.4,4.89405447]
[1727297282529,0.7526,2584.8,2584.5,4.41921]
[1727297284467,0.7526,2584.8,2584.5,0.55]
[1727297284974,0.7526,2584.8,2584.4,4.89411447]
[1727297288347,0.7526,2584.8,2584.5,0.87636145]
[1727297289275,0.7526,2584.8,2584.6,3.86906]
[1727297289938,0.7526,2584.8,2584.6,7.73803]
[1727297290139,0.7526,2584.8,2584.6,3.86897]
[1727297293662,0.7526,2584.8,2584.5,4.74549145]
[1727297293861,0.7526,2584.8,2584.6,1.03051861]
[1727297295250,0.7526,2584.8,2584.3,0.55]
[1727297295251,3.86903,2584.7,2584.3,0.55]
[1727297295564,3.86903,2584.7,2584.2,0.8183]
[1727297295565,3.86892,2584.7,2584.2,3.86958]
[1727297296548,3.86892,2584.7,2584.2,7.73918]
[1727297296779,3.86892,2584.7,2584.2,5.19182147]
[1727297297085,3.86892,2584.7,2584.2,9.06140147]
[1727297297788,4.62151,2584.8,2584.2,5.19182147]
[1727297297950,8.49042,2584.8,2584.3,3.86948]
[1727297298349,4.62151,2584.8,2584.3,3.86948]
[1727297298679,4.62151,2584.8,2584.3,4.77561015]
[1727297299648,8.49037,2584.8,2584.3,4.77561015]
[1727297299854,3.86892,2584.7,2584.3,0.90613015]
[1727297300067,3.86892,2584.7,2584.2,5.55999468]
[1727297300477,3.86892,2584.7,2584.3,3.86949]
[1727297302093,0.7526,2584.8,2584.3,3.86949]
[1727297302094,4.62138,2584.8,2584.3,3.86949]
[1727297302298,4.62138,2584.8,2584.3,4.643395]
[1727297305902,4.62138,2584.8,2584.4,3.8693]
[1727297306490,4.60117981,2584.8,2584.4,3.8693]
[1727297307992,5.93622324,2585.0,2584.5,3.8691]
[1727297308204,7.7741332,2585.0,2584.5,3.8691]
[1727297308499,3.9055432,2585.0,2584.5,7.73823]
[1727297308998,3.9055432,2585.0,2584.5,7.73825]
[1727297309413,4.7160432,2585.0,2584.5,7.73825]
[1727297311696,4.7160432,2585.0,2584.5,3.8691]
[1727297312547,4.7160432,2585.0,2584.6,3.86904]
[1727297312831,3.9055432,2585.0,2584.6,4.65804]
[1727297315011,7.7741432,2585.0,2584.6,0.789]
[1727297317227,3.86866,2584.9,2584.6,0.789]
[1727297320031,3.86877,2584.8,2584.4,0.8045]
[1727297320330,0.7514,2584.5,2584.0,0.8045]
[1727297320532,3.86967,2584.2,2583.8,4.67468]
[1727297320738,7.73894,2584.4,2583.9,3.8701]
[1727297320896,3.86947,2584.4,2583.9,3.8701]
[1727297321091,3.86947,2584.4,2583.8,4.67468]
[1727297321298,3.86947,2584.4,2583.9,3.8701]
[1727297321740,7.73892,2584.4,2583.9,3.8701]
[1727297322028,7.73895,2584.4,2583.9,3.8701]
[1727297326117,3.86945,2584.4,2583.9,3.8701]
[1727297326903,7.73891,2584.4,2583.9,3.8701]
[1727297328312,3.86945,2584.4,2583.9,3.8701]
[1727297328923,7.7389,2584.4,2583.9,3.8701]
[1727297329900,3.86945,2584.4,2583.9,3.8701]
[1727297330325,4.62068,2584.5,2584.0,4.78801915]
[1727297330534,4.62068,2584.5,2584.0,3.86989]
[1727297330535,3.8694,2584.4,2584.0,3.86989]
[1727297330741,3.8694,2584.4,2583.9,4.42011]
[1727297330914,0.8217,2584.1,2583.8,3.87022]
[1727297331231,0.8217,2584.1,2583.8,3.87018]
[1727297331435,0.8217,2584.3,2583.9,4.257058]
[1727297331641,3.86922,2584.5,2584.1,3.86978]
[1727297335038,3.86922,2584.5,2584.1,3.86979]
[1727297335940,3.86922,2584.5,2584.0,4.68036]
[1727297336116,3.86922,2584.5,2584.1,3.86979]
[1727297339411,6.70672873,2584.6,2584.2,3.86966]
[1727297339635,4.67659,2584.6,2584.2,3.86966]
[1727297340411,8.54574,2584.6,2584.2,3.86966]
[1727297340613,4.67659,2584.6,2584.2,3.86966]
[1727297341995,8.54574,2584.6,2584.2,3.86966]
[1727297342849,0.8075,2584.6,2584.2,3.86966]
[1727297343050,0.8075,2584.6,2584.2,4.337676]
[1727297343220,4.67667,2584.6,2584.2,0.468016]
[1727297343420,4.67667,2584.6,2584.2,3.86966]
[1727297345032,3.86886,2584.8,2584.2,3.86966]
[1727297345033,2.84804174,2584.8,2584.3,3.8694]
[1727297345233,4.68609,2584.8,2584.3,3.8694]
[1727297345426,4.68609,2584.8,2584.4,3.86935]
[1727297346231,4.68609,2584.8,2584.3,3.86944]
[1727297346547,3.86893,2584.7,2584.2,5.70672047]
[1727297354187,7.73795,2584.7,2584.2,5.70672047]
[1727297355177,3.86893,2584.7,2584.2,5.70672047]
[1727297359665,5.90075381,2584.7,2584.2,5.70672047]
[1727297359865,5.90075381,2584.7,2584.2,4.63244]
[1727297365208,5.90075381,2584.7,2584.2,3.86964]
[1727297365580,2.03182381,2584.6,2584.2,3.86964]
[1727297367395,5.90090381,2584.6,2584.2,3.86964]
[1727297368220,5.90239874,2584.6,2584.2,3.86964]
[1727297373232,5.90266006,2584.6,2584.2,3.86964]
[1727297374308,5.90266006,2584.6,2584.2,4.781184]
[1727297375417,5.90277739,2584.6,2584.2,4.781184]
[1727297378158,3.86908,2584.6,2584.2,4.781184]
[1727297378359,5.90300142,2584.6,2584.2,4.781184]
[1727297380524,2.03392142,2584.5,2584.2,4.781184]
[1727297383363,2.03442475,2584.5,2584.2,4.781184]
[1727297387366,2.03442475,2584.5,2584.2,3.86964]
[1727297388137,2.03487098,2584.5,2584.2,3.86964]
[1727297393172,2.03505695,2584.5,2584.2,3.86964]
[1727297394146,2.03505695,2584.5,2584.3,3.86951]
[1727297394971,2.03506732,2584.5,2584.3,3.86951]
[1727297397575,2.03506732,2584.5,2584.2,3.86964]
[1727297401681,2.03519916,2584.5,2584.2,3.86964]
[1727297402571,2.84079916,2584.5,2584.2,3.86964]
[1727297402743,2.84079916,2584.5,2584.3,3.8695]
[1727297404866,2.03519916,2584.5,2584.3,3.8695]
[1727297406509,4.67454,2584.7,2584.3,3.8695]
[1727297406807,2.03548231,2584.5,2584.3,3.8695]
[1727297408100,2.03548231,2584.6,2584.4,3.86935]
[1727297408271,2.84108231,2584.7,2584.3,3.8695]
[1727297408471,2.03548231,2584.6,2584.3,3.8695]
[1727297409376,2.03548231,2584.6,2584.3,4.6498]
[1727297410942,2.03548231,2584.6,2584.2,3.86962]
[1727297411605,2.03500136,2584.6,2584.2,3.86962]
[1727297419212,2.03500136,2584.6,2584.3,3.8695]
[1727297421292,6.70961136,2584.7,2584.3,3.8695]
[1727297421611,6.70922324,2584.7,2584.3,3.8695]
[1727297422511,2.03461324,2584.6,2584.4,0.7838]
[1727297424441,2.03464545,2584.6,2584.4,0.7838]
[1727297425114,2.03464545,2584.6,2584.4,1.249123]
[1727297425279,2.03464545,2584.8,2584.5,3.86922]
[1727297425474,2.03464545,2584.8,2584.7,0.8187]
[1727297425701,2.03464545,2584.9,2584.7,0.8187]
[1727297426409,2.03392347,2584.9,2584.7,0.8187]
[1727297426716,2.07089667,2585.0,2584.8,5.55920468]
[1727297427011,2.07089667,2585.0,2584.9,4.65202]
[1727297427012,0.0369732,2585.0,2584.9,4.65202]
[1727297429227,0.0369732,2585.0,2584.9,5.20202]
[1727297429433,0.0369732,2585.0,2584.9,6.32502007]
[1727297437763,0.0369732,2585.0,2584.9,1.12300007]
[1727297437969,0.7729,2584.9,2584.4,0.7815]
[1727297438256,4.64158,2584.9,2584.4,3.86935]
[1727297438441,0.0369732,2585.0,2584.5,0.8207]
[1727297438647,4.29598252,2585.0,2584.5,4.6898]
[1727297438833,4.29598252,2585.0,2584.5,8.55894]
[1727297439228,0.0369732,2585.0,2584.5,4.6898]
[1727297439661,0.0369732,2585.0,2584.7,3.86885]
[1727297440777,0.0369732,2585.0,2584.8,3.86876]
[1727297441466,0.0369732,2585.0,2584.7,3.86887]
[1727297447279,0.0369732,2585.0,2584.7,4.77972]
[1727297449500,0.0369732,2585.0,2584.8,4.65767]
[1727297449802,0.0369732,2585.0,2584.9,3.86862]
[1727297449977,0.0369732,2585.0,2584.8,4.65767]
[1727297450297,0.0369732,2585.0,2584.9,3.86862]
[1727297450501,0.0369732,2585.0,2584.9,4.812327]
[1727297450687,0.0369732,2585.0,2584.9,5.362327]
[1727297450877,0.0369732,2585.0,2584.9,5.43920342]
[1727297451197,0.0369732,2585.0,2584.9,5.362327]
[1727297457320,0.0369732,2585.0,2584.9,3.86862]
[1727297462469,0.0369732,2585.0,2584.9,4.62312]
[1727297464172,0.0369732,2585.0,2584.9,4.70001179]
[1727297464369,0.0369732,2585.0,2584.9,5.17312]
[1727297467375,0.0369732,2585.0,2584.9,0.55]
[1727297468058,0.0369732,2585.0,2584.4,0.7711]
[1727297468059,0.8029,2584.8,2584.4,0.7711]
[1727297468368,0.8029,2584.8,2584.3,3.86951]
[1727297468369,4.6718,2584.8,2584.3,3.86951]
[1727297468547,0.8029,2584.8,2584.3,4.720526]
[1727297468739,0.8029,2584.8,2584.5,3.86922]
[1727297476927,2.49333468,2584.8,2584.4,0.55]
[1727297477196,4.69338,2584.5,2584.0,3.86988]
[1727297477687,0.8241,2584.5,2584.1,3.86974]
[1727297478067,0.8241,2584.5,2584.2,3.86964]
[1727297480080,0.8241,2584.5,2584.3,3.86951]
[1727297480263,0.8241,2584.5,2584.2,3.86964]
[1727297481667,0.8241,2584.5,2584.0,4.69904]
[1727297481867,0.8241,2584.5,2584.1,3.86974]
[1727297482769,0.8241,2584.5,2584.2,3.86965]
[1727297483189,0.8241,2584.5,2584.2,3.86959]
[1727297483398,0.8241,2584.5,2584.1,7.73945]
[1727297483770,0.8241,2584.5,2584.2,3.86966]
[1727297484103,0.8241,2584.5,2584.1,3.86971]
[1727297484306,0.8241,2584.5,2584.1,7.73942]
[1727297484500,0.8241,2584.5,2584.2,3.86963]
[1727297484885,0.56605405,2584.5,2584.0,3.8699]
[1727297485200,0.7866,2584.4,2584.1,3.86979]
[1727297491413,0.7866,2584.4,2584.1,3.86976]
[1727297492472,0.7866,2584.4,2584.1,7.7395]
[1727297492693,0.7866,2584.4,2584.1,3.86973]
[1727297493605,0.7866,2584.4,2584.2,3.86964]
[1727297494315,0.7866,2584.4,2584.0,3.86992]
[1727297494469,0.7866,2584.4,2584.1,3.8698]
[1727297494668,0.7866,2584.4,2584.2,3.86963]
[1727297495294,0.7866,2584.4,2584.1,3.8698]
[1727297495472,0.7866,2584.4,2584.2,3.86963]
[1727297496113,0.7866,2584.4,2584.1,3.8698]
[1727297496499,0.7866,2584.4,2584.1,7.73955]
[1727297496822,0.7866,2584.4,2584.1,3.86975]
[1727297497266,0.7866,2584.4,2584.1,7.7395]
[1727297497531,0.7866,2584.4,2584.1,3.86973]
[1727297498086,0.7866,2584.4,2584.2,3.86966]
[1727297500728,0.831,2584.6,2584.2,3.86966]
[1727297501630,4.70007,2584.6,2584.2,3.86966]
[1727297501794,5.72600947,2584.6,2584.2,3.86966]
[1727297502300,5.72600947,2584.6,2584.0,3.86992]
[1727297502301,9.59519947,2584.6,2584.1,3.8698]
[1727297502539,5.72600947,2584.6,2584.2,3.86964]
[1727297503793,0.8244,2584.8,2584.5,3.86922]
[1727297504113,0.8613732,2585.0,2584.6,3.86906]
[1727297504301,4.7298732,2585.0,2584.6,3.86906]
[1727297505142,4.7298732,2585.0,2584.4,3.86932]
[1727297505143,4.6867,2584.9,2584.4,3.86932]
[1727297505435,2.50843468,2584.8,2584.4,3.86928]
[1727297507032,6.37726468,2584.8,2584.3,3.8695]
[1727297507907,6.37726468,2584.8,2584.2,4.65704]
[1727297507908,6.37726468,2584.8,2584.4,3.86935]
[1727297513534,8.40880822,2584.8,2584.4,3.86935]
[1727297515210,8.40971305,2584.8,2584.2,8.52656]
[1727297515410,8.40971305,2584.8,2584.3,3.86948]
[1727297516741,8.40967305,2584.8,2584.4,3.86935]
[1727297516905,6.71923837,2584.8,2584.4,3.86935]
[1727297517612,6.71966465,2584.8,2584.4,3.86935]
[1727297521356,2.03328737,2584.7,2584.4,3.86935]
[1727297522269,5.90223737,2584.7,2584.3,3.86947]
[1727297522458,2.03328737,2584.7,2584.3,3.86947]
[1727297522630,2.03328737,2584.7,2584.4,3.86936]